[Event "TUR-chT Superleague 2018"]
[Site "Ankara"]
[Date "2018.07.25"]
[Round "1"]
[White "Isik, Alparslan"]
[Black "Kara, Yanki"]
[Result "1-0"]
[ECO "D37"]
[WhiteElo "2212"]
[BlackElo "2120"]
[Annotator "NA"]
[PlyCount "73"]
[EventDate "2018.07.25"]
[EventType "team-tourn"]
[EventCountry "TUR"]
[SourceTitle "playchess.com"]
[Source "ChessBase"]
[SourceQuality "1"]
[TimeControl "40/5400+30:1800+30"]

1. d4 {[%emt 0:00:30]} Nf6 {[%emt 0:00:30]} 2. c4 {[%emt 0:00:30]} e6 {[%emt 0:00:00]} 3. Nf3 {[%emt 0:00:00]} d5 {[%emt 0:00:00]} 4. Nc3 {[%emt 0:00:00]} Be7 {[%emt 0:00:30]} 5. Bf4 {[%emt 0:00:30]} O-O {[%emt 0:01:30]} 6. e3 {[%emt 0:00:30]} b6 {[%emt 0:01:30]} 7. Bd3 {[%emt 0:02:30]} Bb7 {[%emt 0:01:30]} 8. cxd5 {[%emt 0:00:30]} exd5 {[%emt 0:03:30]} 9. O-O {[%emt 0:01:30]} a6 {[%emt 0:03:30]} 10. Rc1 {[%emt 0:04:30]} Nbd7 {[%emt 0:01:30]} 11. Ne5 {[%emt 0:03:30]} c5 {[%emt 0:15:30]} 12. Qf3 {[%emt 0:12:30]} Rc8 {[%emt 0:04:30]} 13. Bf5 {[%emt 0:03:30]} g6 {[%emt 0:34:30]} 14. Bh3 {[%emt 0:04:30]} Kg7 {[%emt 0:02:30]} 15. Bxd7 {[%emt 0:06:30]} Nxd7 {[%emt 0:01:30]} 16. Qh3 {[%emt 0:00:30]} Nxe5 {[%emt 0:01:30]} 17. Bh6+ {[%emt 0:00:00]} Kg8 {[%emt 0:04:30]} 18. Bxf8 {[%emt 0:01:00]} Bxf8 {[%emt 0:00:30]} 19. dxe5 {[%emt 0:00:00]} Bg7 {[%emt 0:01:56]} 20. Rfd1 {[%emt 0:08:00]} d4 {[%emt 0:04:24]} 21. exd4 {[%emt 0:03:30]} cxd4 {[%emt 0:00:30]} 22. e6 {[%emt 0:00:00]} f5 {[%emt 0:01:07]} 23. Ne2 {[%emt 0:01:00]} Rxc1 {[%emt 0:04:41]} 24. Nxc1 {[%emt 0:00:30]} Bd5 {[%emt 0:02:21]} 25. Re1 {[%emt 0:01:30]} Qe7 {[%emt 0:01:12]} 26. Qg3 {[%emt 0:08:30]} Bf8 {[%emt 0:04:24]} 27. Qe5 {[%emt 0:00:30]} Ba8 {[%emt 0:00:25]} 28. Qxd4 {[%emt 0:00:30]} Qg5 {[%emt 0:00:48]} 29. g3 {[%emt 0:00:30]} Bc5 {[%emt 0:00:16]} 30. Qf4 {[%emt 0:01:30]} Qd8 {[%emt 0:00:35]} 31. Qc4 {[%emt 0:05:30]} Qe7 {[%emt 0:01:13]} 32. Qxa6 {[%emt 0:02:30]} Bb7 {[%emt 0:00:30]} 33. Qb5 {[%emt 0:00:30]} f4 {[%emt 0:00:30]} 34. Nd3 {[%emt 0:03:30]} fxg3 {[%emt 0:00:39]} 35. hxg3 {[%emt 0:02:30]} Qg5 {[%emt 0:00:33]} 36. Nxc5 {[%emt 0:00:00]} Qh5 {[%emt 0:00:57]} 37. Qe8+ {[%emt 0:01:00]} 1-0

[Event "TUR-chT Superleague 2018"]
[Site "Ankara"]
[Date "2018.07.25"]
[Round "1"]
[White "Eren, Ataberk"]
[Black "Yaran, Siar"]
[Result "0-1"]
[ECO "D56"]
[WhiteElo "2195"]
[BlackElo "2261"]
[Annotator "NA"]
[PlyCount "118"]
[EventDate "2018.07.25"]
[EventType "team-tourn"]
[EventCountry "TUR"]
[SourceTitle "playchess.com"]
[Source "ChessBase"]
[SourceQuality "1"]
[TimeControl "40/5400+30:1800+30"]

1. d4 {[%emt 0:00:30]} d5 {[%emt 0:00:30]} 2. c4 {[%emt 0:00:30]} e6 {[%emt 0:00:30]} 3. Nc3 {[%emt 0:00:30]} Nf6 {[%emt 0:00:30]} 4. Bg5 {[%emt 0:00:30]} Be7 {[%emt 0:00:30]} 5. e3 {[%emt 0:00:30]} h6 {[%emt 0:00:30]} 6. Bh4 {[%emt 0:00:00]} O-O {[%emt 0:00:00]} 7. Nf3 {[%emt 0:00:00]} Ne4 {[%emt 0:00:00]} 8. Bxe7 {[%emt 0:00:00]} Qxe7 {[%emt 0:00:00]} 9. Qc2 {[%emt 0:00:00]} Nxc3 {[%emt 0:00:00]} 10. Qxc3 {[%emt 0:00:30]} c6 {[%emt 0:00:30]} 11. Bd3 {[%emt 0:01:30]} dxc4 {[%emt 0:00:30]} 12. Bxc4 {[%emt 0:00:30]} b6 {[%emt 0:00:00]} 13. O-O {[%emt 0:00:30]} Bb7 {[%emt 0:00:00]} 14. Rac1 {[%emt 0:05:30]} Nd7 {[%emt 0:01:30]} 15. Be2 {[%emt 0:03:30]} Rfc8 {[%emt 0:01:30]} 16. Rfd1 {[%emt 0:02:30]} c5 {[%emt 0:15:30]} 17. dxc5 {[%emt 0:05:30]} Nxc5 {[%emt 0:09:30]} 18. Qa3 {[%emt 0:03:30]} Rc7 {[%emt 0:10:30]} 19. b4 {[%emt 0:34:30]} Ne4 {[%emt 0:00:00]} 20. Rxc7 {[%emt 0:02:30]} Qxc7 {[%emt 0:00:00]} 21. Rc1 {[%emt 0:00:30]} Qe7 {[%emt 0:04:30]} 22. Qb2 {[%emt 0:07:30]} Rd8 {[%emt 0:10:30]} 23. a3 {[%emt 0:02:30]} Qf6 {[%emt 0:07:30]} 24. Qxf6 {[%emt 0:02:30]} Nxf6 {[%emt 0:00:00]} 25. h3 {[%emt 0:10:42]} Rc8 {[%emt 0:02:00]} 26. Rxc8+ {[%emt 0:02:37]} Bxc8 {[%emt 0:00:30]} 27. Nd4 {[%emt 0:04:21]} Bd7 {[%emt 0:01:30]} 28. f4 {[%emt 0:00:16]} Kf8 {[%emt 0:08:30]} 29. Bf3 {[%emt 0:00:36]} Ne8 {[%emt 0:00:30]} 30. Be2 {[%emt 0:07:26]} Nd6 {[%emt 0:00:30]} 31. Bd3 {[%emt 0:00:14]} Ke7 {[%emt 0:00:30]} 32. e4 {[%emt 0:02:15]} f6 {[%emt 0:00:30]} 33. Kf2 {[%emt 0:00:00]} e5 {[%emt 0:01:30]} 34. Ne2 {[%emt 0:00:57]} Bc6 {[%emt 0:15:29]} 35. fxe5 {[%emt 0:00:32]} fxe5 {[%emt 0:02:49]} 36. Ke3 {[%emt 0:00:30]} Kf6 {[%emt 0:00:00]} 37. g3 {[%emt 0:01:23]} Bd7 {[%emt 0:00:59]} 38. h4 {[%emt 0:00:12]} g5 {[%emt 0:00:00]} 39. Kf3 {[%emt 0:00:53]} Bb5 {[%emt 0:04:40]} 40. Ke3 {[%emt 0:00:00]} Bxd3 {[%emt 0:04:17]} 41. Kxd3 {[%emt 0:01:36]} Kg6 {[%emt 0:00:00]} 42. Ng1 {[%emt 0:12:26]} gxh4 {[%emt 0:02:16]} 43. gxh4 {[%emt 0:00:07]} b5 {[%emt 0:01:30]} 44. Nf3 {[%emt 0:07:50]} Nf7 {[%emt 0:04:30]} 45. Ne1 {[%emt 0:01:44]} Kh5 {[%emt 0:01:30]} 46. Ng2 {[%emt 0:00:11]} Kg4 {[%emt 0:00:00]} 47. Ke2 {[%emt 0:00:09]} Kg3 {[%emt 0:00:00]} 48. Ne3 {[%emt 0:00:30]} Kxh4 {[%emt 0:00:30]} 49. Kf2 {[%emt 0:00:04]} Nd6 {[%emt 0:03:30]} 50. Kf3 {[%emt 0:00:06]} Kg5 {[%emt 0:00:00]} 51. Nd5 {[%emt 0:01:16]} Nc4 {[%emt 0:01:00]} 52. Ne7 {[%emt 0:00:12]} a5 {[%emt 0:00:30]} 53. Nc6 {[%emt 0:02:04]} a4 {[%emt 0:00:30]} 54. Kg3 {[%emt 0:00:00]} Kf6 {[%emt 0:00:30]} 55. Na7 {[%emt 0:01:19]} Nxa3 {[%emt 0:00:30]} 56. Kg4 {[%emt 0:00:00]} Nb1 {[%emt 0:00:30]} 57. Nxb5 {[%emt 0:02:46]} a3 {[%emt 0:00:30]} 58. Nxa3 {[%emt 0:00:00]} Nxa3 {[%emt 0:00:30]} 59. Kh5 {[%emt 0:00:22]} Kg7 {[%emt 0:00:30]} 0-1

[Event "TUR-chT Superleague 2018"]
[Site "Ankara"]
[Date "2018.07.25"]
[Round "1"]
[White "Kamer, Kayra"]
[Black "Can, Isik"]
[Result "1/2-1/2"]
[ECO "B18"]
[WhiteElo "2181"]
[BlackElo "2385"]
[Annotator "NA"]
[PlyCount "53"]
[EventDate "2018.07.25"]
[EventType "team-tourn"]
[EventCountry "TUR"]
[SourceTitle "playchess.com"]
[Source "ChessBase"]
[SourceQuality "1"]
[TimeControl "40/5400+30:1800+30"]

1. e4 {[%emt 0:00:30]} c6 {[%emt 0:00:30]} 2. d4 {[%emt 0:00:30]} d5 {[%emt 0:00:30]} 3. Nc3 {[%emt 0:00:30]} dxe4 {[%emt 0:00:30]} 4. Nxe4 {[%emt 0:00:30]} Bf5 {[%emt 0:00:30]} 5. Nc5 {[%emt 0:00:30]} Nd7 {[%emt 0:00:00]} 6. Bd3 {[%emt 0:00:00]} e6 {[%emt 0:01:00]} 7. Nxb7 {[%emt 0:04:00]} Qc7 {[%emt 0:07:30]} 8. Bxf5 {[%emt 0:00:30]} exf5 {[%emt 0:01:30]} 9. Qe2+ {[%emt 0:00:30]} Be7 {[%emt 0:00:30]} 10. Nc5 {[%emt 0:00:30]} Nxc5 {[%emt 0:00:30]} 11. dxc5 {[%emt 0:00:30]} Nf6 {[%emt 0:00:30]} 12. Nf3 {[%emt 0:03:30]} O-O {[%emt 0:00:30]} 13. O-O {[%emt 0:02:30]} Bxc5 {[%emt 0:14:30]} 14. Qe5 {[%emt 0:00:00]} Qxe5 {[%emt 0:08:30]} 15. Nxe5 {[%emt 0:00:00]} Rfe8 {[%emt 0:00:00]} 16. Nd3 {[%emt 0:00:30]} Bb6 {[%emt 0:00:00]} 17. Bf4 {[%emt 0:02:30]} Re2 {[%emt 0:04:30]} 18. c4 {[%emt 0:02:30]} Rd8 {[%emt 0:08:30]} 19. Rad1 {[%emt 0:02:30]} Bd4 {[%emt 0:15:30]} 20. Rfe1 {[%emt 0:02:30]} Rc2 {[%emt 0:11:30]} 21. Rc1 {[%emt 0:01:30]} Rxc1 {[%emt 0:01:30]} 22. Bxc1 {[%emt 0:00:30]} Bb6 {[%emt 0:01:30]} 23. Ne5 {[%emt 0:01:30]} Re8 {[%emt 0:04:57]} 24. Nd3 {[%emt 0:03:30]} Rd8 {[%emt 0:00:30]} 25. Ne5 {[%emt 0:00:00]} Re8 {[%emt 0:09:51]} 26. Nd3 {[%emt 0:00:00]} Rd8 {[%emt 0:00:47]} 27. Ne5 {[%emt 0:00:30]} 1/2-1/2

[Event "TUR-chT Superleague 2018"]
[Site "Ankara"]
[Date "2018.07.25"]
[Round "1"]
[White "Ererdem, Gani Eren"]
[Black "Gok, Fatih"]
[Result "0-1"]
[ECO "B14"]
[WhiteElo "2157"]
[BlackElo "1952"]
[Annotator "NA"]
[PlyCount "110"]
[EventDate "2018.07.25"]
[EventType "team-tourn"]
[EventCountry "TUR"]
[SourceTitle "playchess.com"]
[Source "ChessBase"]
[SourceQuality "1"]
[TimeControl "40/5400+30:1800+30"]

1. d4 {[%emt 0:00:30]} Nf6 {[%emt 0:00:30]} 2. Nf3 {[%emt 0:00:30]} e6 {[%emt 0:00:00]} 3. c4 {[%emt 0:03:30]} c5 {[%emt 0:00:00]} 4. e3 {[%emt 0:06:30]} cxd4 {[%emt 0:07:30]} 5. exd4 {[%emt 0:05:30]} d5 {[%emt 0:00:30]} 6. Nc3 {[%emt 0:02:30]} Be7 {[%emt 0:02:30]} 7. cxd5 {[%emt 0:02:30]} exd5 {[%emt 0:11:30]} 8. h3 {[%emt 0:05:30]} Nc6 {[%emt 0:05:30]} 9. Bd3 {[%emt 0:01:30]} O-O {[%emt 0:03:30]} 10. O-O {[%emt 0:00:30]} Re8 {[%emt 0:09:30]} 11. Re1 {[%emt 0:06:30]} Be6 {[%emt 0:04:30]} 12. a3 {[%emt 0:04:30]} Rc8 {[%emt 0:10:30]} 13. Bc2 {[%emt 0:04:30]} Bf8 {[%emt 0:07:30]} 14. Bg5 {[%emt 0:25:30]} g6 {[%emt 0:13:30]} 15. Ne5 {[%emt 0:06:30]} Bg7 {[%emt 0:01:50]} 16. Nxc6 {[%emt 0:07:53]} bxc6 {[%emt 0:00:15]} 17. Na4 {[%emt 0:01:04]} h6 {[%emt 0:02:41]} 18. Bf4 {[%emt 0:01:51]} Nd7 {[%emt 0:03:09]} 19. Qd2 {[%emt 0:01:29]} Qh4 {[%emt 0:02:20]} 20. Rad1 {[%emt 0:01:24]} Kh7 {[%emt 0:04:02]} 21. Bg3 {[%emt 0:03:16]} Qd8 {[%emt 0:03:36]} 22. Nc3 {[%emt 0:02:02]} Qb6 {[%emt 0:01:11]} 23. Ne2 {[%emt 0:02:58]} Nf6 {[%emt 0:01:12]} 24. Be5 {[%emt 0:01:03]} Bd7 {[%emt 0:02:09]} 25. Nf4 {[%emt 0:00:43]} Kg8 {[%emt 0:01:12]} 26. b4 {[%emt 0:01:50]} Ra8 {[%emt 0:00:33]} 27. Kh1 {[%emt 0:00:52]} a5 {[%emt 0:01:06]} 28. f3 {[%emt 0:00:26]} axb4 {[%emt 0:00:09]} 29. axb4 {[%emt 0:00:02]} Nh7 {[%emt 0:01:03]} 30. Bxg7 {[%emt 0:00:38]} Kxg7 {[%emt 0:00:03]} 31. Qc3 {[%emt 0:00:30]} Rab8 {[%emt 0:01:01]} 32. Rxe8 {[%emt 0:00:44]} Bxe8 {[%emt 0:00:17]} 33. Nd3 {[%emt 0:00:12]} Ng5 {[%emt 0:00:23]} 34. Rb1 {[%emt 0:00:46]} Bd7 {[%emt 0:01:13]} 35. Nc5 {[%emt 0:00:40]} Bc8 {[%emt 0:00:22]} 36. Qd2 {[%emt 0:00:32]} Ne6 {[%emt 0:00:27]} 37. Qe3 {[%emt 0:00:29]} Qc7 {[%emt 0:00:37]} 38. Bd3 {[%emt 0:00:34]} Qg3 {[%emt 0:01:00]} 39. Nxe6+ {[%emt 0:00:30]} Bxe6 {[%emt 0:00:00]} 40. Qe5+ {[%emt 0:00:29]} Qxe5 {[%emt 0:00:00]} 41. dxe5 {[%emt 0:00:03]} f6 {[%emt 0:05:39]} 42. Rc1 {[%emt 0:11:30]} Rb6 {[%emt 0:02:30]} 43. exf6+ {[%emt 0:17:18]} Kxf6 {[%emt 0:00:30]} 44. Rc5 {[%emt 0:02:25]} Bf5 {[%emt 0:04:30]} 45. Be2 {[%emt 0:01:38]} Ke5 {[%emt 0:00:30]} 46. b5 {[%emt 0:00:03]} cxb5 {[%emt 0:04:01]} 47. Rxb5 {[%emt 0:00:02]} Rxb5 {[%emt 0:02:16]} 48. Bxb5 {[%emt 0:00:01]} Kf4 {[%emt 0:00:50]} 49. Kg1 {[%emt 0:01:24]} Ke3 {[%emt 0:02:07]} 50. g4 {[%emt 0:00:51]} Bc2 {[%emt 0:00:30]} 51. Kg2 {[%emt 0:00:00]} g5 {[%emt 0:00:11]} 52. Kg3 {[%emt 0:00:27]} d4 {[%emt 0:00:13]} 53. h4 {[%emt 0:00:12]} d3 {[%emt 0:00:49]} 54. Bxd3 {[%emt 0:00:30]} Bxd3 {[%emt 0:00:30]} 55. hxg5 {[%emt 0:00:30]} hxg5 {[%emt 0:00:00]} 0-1

[Event "TUR-chT Superleague 2018"]
[Site "Ankara"]
[Date "2018.07.25"]
[Round "1"]
[White "Ozbay, Ece"]
[Black "Sade, Defne"]
[Result "1-0"]
[ECO "C47"]
[WhiteElo "2140"]
[BlackElo "1954"]
[Annotator "NA"]
[PlyCount "91"]
[EventDate "2018.07.25"]
[EventType "team-tourn"]
[EventCountry "TUR"]
[SourceTitle "playchess.com"]
[Source "ChessBase"]
[SourceQuality "1"]
[TimeControl "40/5400+30:1800+30"]

1. e4 {[%emt 0:00:30]} e5 {[%emt 0:00:30]} 2. Nf3 {[%emt 0:00:30]} Nc6 {[%emt 0:00:30]} 3. Nc3 {[%emt 0:00:00]} Nf6 {[%emt 0:00:00]} 4. d4 {[%emt 0:00:00]} exd4 {[%emt 0:00:00]} 5. Nxd4 {[%emt 0:00:30]} Bb4 {[%emt 0:00:30]} 6. Nxc6 {[%emt 0:00:30]} bxc6 {[%emt 0:00:30]} 7. Bd3 {[%emt 0:00:30]} d5 {[%emt 0:00:00]} 8. exd5 {[%emt 0:00:00]} cxd5 {[%emt 0:00:00]} 9. O-O {[%emt 0:00:00]} O-O {[%emt 0:00:00]} 10. Bg5 {[%emt 0:00:30]} c6 {[%emt 0:00:00]} 11. Qf3 {[%emt 0:03:30]} Rb8 {[%emt 0:01:30]} 12. Na4 {[%emt 0:09:30]} Be6 {[%emt 0:05:30]} 13. c3 {[%emt 0:05:30]} Be7 {[%emt 0:02:30]} 14. Bc2 {[%emt 0:03:30]} h6 {[%emt 0:13:30]} 15. Bh4 {[%emt 0:04:30]} Ng4 {[%emt 0:11:30]} 16. Bg3 {[%emt 0:10:30]} Bd6 {[%emt 0:03:30]} 17. Rae1 {[%emt 0:01:30]} Nf6 {[%emt 0:11:30]} 18. Bh4 {[%emt 0:08:30]} Re8 {[%emt 0:16:30]} 19. b4 {[%emt 0:06:30]} Rb7 {[%emt 0:19:21]} 20. Kh1 {[%emt 0:10:30]} g5 {[%emt 0:02:25]} 21. Bg3 {[%emt 0:00:30]} Kg7 {[%emt 0:00:00]} 22. Qd3 {[%emt 0:04:30]} Rbe7 {[%emt 0:02:15]} 23. Qd4 {[%emt 0:10:03]} Bc8 {[%emt 0:03:59]} 24. Rxe7 {[%emt 0:06:00]} Qxe7 {[%emt 0:01:39]} 25. f4 {[%emt 0:01:03]} gxf4 {[%emt 0:01:55]} 26. Bxf4 {[%emt 0:00:22]} Bxf4 {[%emt 0:00:59]} 27. Qxf4 {[%emt 0:00:01]} Qe5 {[%emt 0:00:19]} 28. Qf2 {[%emt 0:04:37]} Ba6 {[%emt 0:00:08]} 29. Rc1 {[%emt 0:06:19]} Ng4 {[%emt 0:00:30]} 30. Qg3 {[%emt 0:00:01]} Qxg3 {[%emt 0:02:43]} 31. hxg3 {[%emt 0:00:30]} Re2 {[%emt 0:00:01]} 32. Nc5 {[%emt 0:03:52]} Bc4 {[%emt 0:00:33]} 33. Bb3 {[%emt 0:01:06]} Ne3 {[%emt 0:01:25]} 34. Bxc4 {[%emt 0:00:29]} Nxc4 {[%emt 0:00:00]} 35. a4 {[%emt 0:00:23]} Ne3 {[%emt 0:00:33]} 36. Nb3 {[%emt 0:00:43]} Ra2 {[%emt 0:00:27]} 37. a5 {[%emt 0:00:52]} Rb2 {[%emt 0:00:30]} 38. Nd4 {[%emt 0:00:00]} Nc4 {[%emt 0:00:28]} 39. Nxc6 {[%emt 0:00:00]} a6 {[%emt 0:00:54]} 40. Nb8 {[%emt 0:00:00]} Nd6 {[%emt 0:00:12]} 41. Nxa6 {[%emt 0:01:09]} Ne4 {[%emt 0:01:14]} 42. Kh2 {[%emt 0:02:30]} Rb3 {[%emt 0:08:30]} 43. Nc7 {[%emt 0:00:30]} Nxc3 {[%emt 0:02:30]} 44. a6 {[%emt 0:00:30]} Na2 {[%emt 0:00:30]} 45. Ra1 {[%emt 0:00:30]} d4 {[%emt 0:02:02]} 46. Rxa2 {[%emt 0:00:30]} 1-0

[Event "TUR-chT Superleague 2018"]
[Site "Ankara"]
[Date "2018.07.25"]
[Round "1"]
[White "Bozbey, Ali"]
[Black "Gulbeyaz, Emir"]
[Result "1/2-1/2"]
[ECO "B25"]
[WhiteElo "2126"]
[BlackElo "2074"]
[Annotator "NA"]
[PlyCount "60"]
[EventDate "2018.07.25"]
[EventType "team-tourn"]
[EventCountry "TUR"]
[SourceTitle "playchess.com"]
[Source "ChessBase"]
[SourceQuality "1"]
[TimeControl "40/5400+30:1800+30"]

1. e4 {[%emt 0:00:30]} c5 {[%emt 0:00:30]} 2. Nc3 {[%emt 0:00:30]} Nc6 {[%emt 0:00:30]} 3. g3 {[%emt 0:00:30]} g6 {[%emt 0:00:00]} 4. Bg2 {[%emt 0:00:30]} Bg7 {[%emt 0:00:00]} 5. d3 {[%emt 0:00:30]} d6 {[%emt 0:00:00]} 6. f4 {[%emt 0:02:30]} e6 {[%emt 0:01:00]} 7. Nf3 {[%emt 0:00:30]} Nge7 {[%emt 0:00:00]} 8. O-O {[%emt 0:00:00]} O-O {[%emt 0:00:00]} 9. Be3 {[%emt 0:00:00]} b6 {[%emt 0:02:30]} 10. e5 {[%emt 0:15:30]} d5 {[%emt 0:01:30]} 11. Bf2 {[%emt 0:00:30]} Rb8 {[%emt 0:01:30]} 12. Qe1 {[%emt 0:08:30]} f6 {[%emt 0:11:30]} 13. exf6 {[%emt 0:09:30]} Bxf6 {[%emt 0:00:00]} 14. Qd2 {[%emt 0:08:30]} Nf5 {[%emt 0:02:00]} 15. Rae1 {[%emt 0:00:30]} Bd7 {[%emt 0:01:30]} 16. g4 {[%emt 0:11:30]} Nfd4 {[%emt 0:08:30]} 17. Nxd4 {[%emt 0:04:30]} Bxd4 {[%emt 0:03:30]} 18. Nd1 {[%emt 0:07:30]} Qh4 {[%emt 0:02:30]} 19. h3 {[%emt 0:00:00]} Qh6 {[%emt 0:19:30]} 20. c3 {[%emt 0:06:00]} Bxf2+ {[%emt 0:01:30]} 21. Qxf2 {[%emt 0:00:30]} e5 {[%emt 0:05:30]} 22. Bxd5+ {[%emt 0:05:43]} Kh8 {[%emt 0:00:00]} 23. Qg2 {[%emt 0:04:57]} Ne7 {[%emt 0:01:00]} 24. fxe5 {[%emt 0:01:07]} Nxd5 {[%emt 0:00:30]} 25. Qxd5 {[%emt 0:00:00]} Qxh3 {[%emt 0:00:30]} 26. Qxd7 {[%emt 0:03:57]} Qg3+ {[%emt 0:00:30]} 27. Kh1 {[%emt 0:00:30]} Qh3+ {[%emt 0:00:00]} 28. Kg1 {[%emt 0:00:00]} Qg3+ {[%emt 0:00:00]} 29. Kh1 {[%emt 0:00:26]} Qh3+ {[%emt 0:00:00]} 30. Kg1 {[%emt 0:00:00]} Qg3+ {[%emt 0:00:00]} 1/2-1/2

[Event "TUR-chT Superleague 2018"]
[Site "Ankara"]
[Date "2018.07.25"]
[Round "1"]
[White "Bolat, Ahmet"]
[Black "Ertan, Can"]
[Result "0-1"]
[ECO "A46"]
[WhiteElo "2124"]
[BlackElo "2379"]
[Annotator "NA"]
[PlyCount "98"]
[EventDate "2018.07.25"]
[EventType "team-tourn"]
[EventCountry "TUR"]
[SourceTitle "playchess.com"]
[Source "ChessBase"]
[SourceQuality "1"]
[TimeControl "40/5400+30:1800+30"]

1. d4 {[%emt 0:00:30]} Nf6 {[%emt 0:00:30]} 2. Nf3 {[%emt 0:00:30]} e6 {[%emt 0:00:00]} 3. Bg5 {[%emt 0:01:30]} h6 {[%emt 0:01:00]} 4. Bh4 {[%emt 0:02:30]} b6 {[%emt 0:02:30]} 5. Nbd2 {[%emt 0:02:30]} Bb7 {[%emt 0:00:30]} 6. e3 {[%emt 0:04:30]} d6 {[%emt 0:02:30]} 7. Bd3 {[%emt 0:00:30]} g5 {[%emt 0:09:30]} 8. Bg3 {[%emt 0:00:30]} Nh5 {[%emt 0:00:30]} 9. e4 {[%emt 0:10:30]} Nd7 {[%emt 0:01:30]} 10. c3 {[%emt 0:02:30]} g4 {[%emt 0:14:30]} 11. Ng1 {[%emt 0:11:30]} Nxg3 {[%emt 0:03:30]} 12. hxg3 {[%emt 0:00:30]} Qg5 {[%emt 0:03:30]} 13. Qa4 {[%emt 0:05:30]} a6 {[%emt 0:10:30]} 14. Ne2 {[%emt 0:02:30]} c5 {[%emt 0:08:30]} 15. O-O-O {[%emt 0:13:30]} Be7 {[%emt 0:09:30]} 16. Nf4 {[%emt 0:02:30]} b5 {[%emt 0:01:30]} 17. Qa5 {[%emt 0:04:30]} Bd8 {[%emt 0:00:30]} 18. Qa3 {[%emt 0:00:00]} Bb6 {[%emt 0:03:30]} 19. Rh5 {[%emt 0:03:00]} Qe7 {[%emt 0:02:30]} 20. e5 {[%emt 0:03:30]} dxe5 {[%emt 0:01:30]} 21. dxe5 {[%emt 0:00:30]} c4 {[%emt 0:06:30]} 22. Qxe7+ {[%emt 0:00:30]} Kxe7 {[%emt 0:00:00]} 23. Be4 {[%emt 0:00:00]} Bxe4 {[%emt 0:00:52]} 24. Nxe4 {[%emt 0:00:00]} Bc7 {[%emt 0:00:00]} 25. Rdh1 {[%emt 0:03:30]} Bxe5 {[%emt 0:00:45]} 26. Rxh6 {[%emt 0:00:30]} Rxh6 {[%emt 0:00:30]} 27. Rxh6 {[%emt 0:00:00]} Rh8 {[%emt 0:03:10]} 28. Rxh8 {[%emt 0:00:00]} Bxh8 {[%emt 0:00:30]} 29. Kd2 {[%emt 0:00:30]} Bg7 {[%emt 0:00:00]} 30. f3 {[%emt 0:02:30]} f5 {[%emt 0:01:54]} 31. Nf2 {[%emt 0:00:30]} Bh6 {[%emt 0:02:33]} 32. Ke2 {[%emt 0:00:30]} Nf6 {[%emt 0:00:00]} 33. Ng6+ {[%emt 0:09:31]} Kd6 {[%emt 0:00:00]} 34. fxg4 {[%emt 0:05:07]} fxg4 {[%emt 0:00:36]} 35. b3 {[%emt 0:00:08]} e5 {[%emt 0:05:08]} 36. bxc4 {[%emt 0:01:33]} bxc4 {[%emt 0:00:04]} 37. Nd1 {[%emt 0:00:52]} Ne4 {[%emt 0:00:35]} 38. Nb2 {[%emt 0:01:57]} Nxc3+ {[%emt 0:00:12]} 39. Ke1 {[%emt 0:01:05]} Kd5 {[%emt 0:00:26]} 40. Nxc4 {[%emt 0:00:00]} Kxc4 {[%emt 0:01:07]} 41. Nxe5+ {[%emt 0:02:17]} Kd5 {[%emt 0:02:38]} 42. Nxg4 {[%emt 0:00:30]} Bg5 {[%emt 0:00:30]} 43. a4 {[%emt 0:05:30]} a5 {[%emt 0:03:30]} 44. Nh2 {[%emt 0:00:30]} Nxa4 {[%emt 0:03:30]} 45. Nf3 {[%emt 0:00:30]} Bf6 {[%emt 0:00:00]} 46. Kd2 {[%emt 0:00:30]} Kc4 {[%emt 0:01:00]} 47. Kc2 {[%emt 0:00:00]} Bc3 {[%emt 0:00:30]} 48. g4 {[%emt 0:00:00]} Nc5 {[%emt 0:00:30]} 49. g5 {[%emt 0:00:30]} Ne6 {[%emt 0:02:30]} 0-1

[Event "TUR-chT Superleague 2018"]
[Site "Ankara"]
[Date "2018.07.25"]
[Round "1"]
[White "Tarlabasi, Emirhan"]
[Black "Yildirim, Ibrahim Halil"]
[Result "1-0"]
[ECO "D11"]
[WhiteElo "2117"]
[BlackElo "1887"]
[Annotator "NA"]
[PlyCount "43"]
[EventDate "2018.07.25"]
[EventType "team-tourn"]
[EventCountry "TUR"]
[SourceTitle "playchess.com"]
[Source "ChessBase"]
[SourceQuality "1"]
[TimeControl "40/5400+30:1800+30"]

1. d4 {[%emt 0:00:30]} d5 {[%emt 0:00:30]} 2. c4 {[%emt 0:00:30]} c6 {[%emt 0:00:30]} 3. Nd2 {[%emt 0:00:00]} Nf6 {[%emt 0:01:30]} 4. Ngf3 {[%emt 0:00:00]} Bg4 {[%emt 0:07:30]} 5. Ne5 {[%emt 0:06:30]} Bf5 {[%emt 0:05:30]} 6. Qb3 {[%emt 0:03:30]} Qb6 {[%emt 0:10:30]} 7. e3 {[%emt 0:06:30]} e6 {[%emt 0:08:30]} 8. c5 {[%emt 0:12:30]} Qc7 {[%emt 0:06:30]} 9. Qc3 {[%emt 0:03:30]} Nbd7 {[%emt 0:15:30]} 10. Nxd7 {[%emt 0:04:30]} Nxd7 {[%emt 0:02:30]} 11. f3 {[%emt 0:04:30]} e5 {[%emt 0:13:30]} 12. Be2 {[%emt 0:01:30]} Be7 {[%emt 0:03:30]} 13. O-O {[%emt 0:01:30]} h5 {[%emt 0:15:21]} 14. b4 {[%emt 0:06:30]} Bf6 {[%emt 0:02:34]} 15. f4 {[%emt 0:03:30]} exd4 {[%emt 0:01:40]} 16. exd4 {[%emt 0:00:30]} O-O-O {[%emt 0:01:04]} 17. Nf3 {[%emt 0:03:30]} Rde8 {[%emt 0:01:05]} 18. Ne5 {[%emt 0:01:30]} Bh7 {[%emt 0:00:44]} 19. Bxh5 {[%emt 0:02:30]} Nxe5 {[%emt 0:00:29]} 20. fxe5 {[%emt 0:00:30]} Rxe5 {[%emt 0:00:30]} 21. Bf4 {[%emt 0:01:30]} Re4 {[%emt 0:01:01]} 22. Bg4+ {[%emt 0:00:30]} 1-0